[Event "Late-Titled-Tuesday-Blitz-June-18-2024"]
[Site "Chess.com"]
[Date "2024.06.18"]
[Round "11"]
[White "A4RookA3"]
[Black "egnfanclub"]
[Result "1/2-1/2"]
[WhiteElo "2443"]
[BlackElo "2354"]
[TimeControl "180+1"]
[EndTime "16:07:56 PDT"]
[Termination "Game drawn by repetition"]

1. d4 {[%clk 0:02:16.4]} 1... d5 {[%clk 0:02:58.6]} 2. Bf4 {[%clk 0:02:16.4]}
2... Nf6 {[%clk 0:02:58.1]} 3. e3 {[%clk 0:02:16.7]} 3... Bf5 {[%clk 0:02:58.2]}
4. c4 {[%clk 0:02:16.1]} 4... Bxb1 {[%clk 0:02:48.4]} 5. Rxb1 {[%clk 0:02:13.7]}
5... e5 {[%clk 0:02:43]} 6. dxe5 {[%clk 0:01:57.7]} 6... Bb4+ {[%clk 0:02:38.3]}
7. Ke2 {[%clk 0:01:57.8]} 7... Ne4 {[%clk 0:02:29.4]} 8. Qxd5 {[%clk 0:01:56]}
8... Qxd5 {[%clk 0:02:20.6]} 9. cxd5 {[%clk 0:01:56.9]} 9... g5 {[%clk
0:02:13.3]} 10. Bg3 {[%clk 0:01:49.8]} 10... h5 {[%clk 0:02:11.6]} 11. h4 {[%clk
0:01:45.7]} 11... Nxg3+ {[%clk 0:02:10.8]} 12. fxg3 {[%clk 0:01:46.1]} 12... g4
{[%clk 0:02:10.9]} 13. Kd3 {[%clk 0:01:40.7]} 13... Nd7 {[%clk 0:02:10]} 14. Ke4
{[%clk 0:01:13.5]} 14... O-O-O {[%clk 0:02:05.1]} 15. Bb5 {[%clk 0:01:13.9]}
15... Rhe8 {[%clk 0:01:42.7]} 16. Bxd7+ {[%clk 0:01:09.7]} 16... Rxd7 {[%clk
0:01:42.7]} 17. a3 {[%clk 0:00:55.7]} 17... Bd6 {[%clk 0:01:42.2]} 18. Ne2
{[%clk 0:00:51.3]} 18... Rxe5+ {[%clk 0:01:41.5]} 19. Kd3 {[%clk 0:00:50.4]}
19... Rde7 {[%clk 0:01:40.1]} 20. Nc3 {[%clk 0:00:37.8]} 20... Rxe3+ {[%clk
0:01:39]} 21. Kd2 {[%clk 0:00:37]} 21... Rxg3 {[%clk 0:01:38.9]} 22. Rhg1 {[%clk
0:00:23.7]} 22... Bc5 {[%clk 0:01:32.4]} 23. Rgf1 {[%clk 0:00:18.2]} 23... Rxg2+
{[%clk 0:01:30.5]} 24. Kd3 {[%clk 0:00:18.6]} 24... Rg3+ {[%clk 0:01:01.1]} 25.
Kc4 {[%clk 0:00:17.2]} 25... Bd6 {[%clk 0:00:59.3]} 26. Rf5 {[%clk 0:00:16.5]}
26... a6 {[%clk 0:00:37.9]} 27. Rxh5 {[%clk 0:00:15.7]} 27... b5+ {[%clk
0:00:37.8]} 28. Kb3 {[%clk 0:00:15.9]} 28... Rh3 {[%clk 0:00:35.3]} 29. Rh8+
{[%clk 0:00:15.4]} 29... Kb7 {[%clk 0:00:35.3]} 30. Rg1 {[%clk 0:00:13]} 30...
g3 {[%clk 0:00:34.7]} 31. h5 {[%clk 0:00:12.1]} 31... Re5 {[%clk 0:00:34.7]} 32.
h6 {[%clk 0:00:11.4]} 32... Reh5 {[%clk 0:00:34.7]} 33. Ne4 {[%clk 0:00:11.7]}
33... Rxh6 {[%clk 0:00:28.4]} 34. Nxd6+ {[%clk 0:00:09.6]} 34... cxd6 {[%clk
0:00:27.2]} 35. Rxh6 {[%clk 0:00:10.2]} 35... Rxh6 {[%clk 0:00:26.5]} 36. Rxg3
{[%clk 0:00:11.1]} 36... Rh5 {[%clk 0:00:23.4]} 37. Rf3 {[%clk 0:00:08.5]} 37...
Rxd5 {[%clk 0:00:21.4]} 38. Rxf7+ {[%clk 0:00:08.8]} 38... Kc6 {[%clk
0:00:22.3]} 39. Kc3 {[%clk 0:00:09]} 39... a5 {[%clk 0:00:22.2]} 40. b4 {[%clk
0:00:08.5]} 40... a4 {[%clk 0:00:21.9]} 41. Rf3 {[%clk 0:00:05.8]} 41... Rh5
{[%clk 0:00:22.1]} 42. Rg3 {[%clk 0:00:05.9]} 42... Rh4 {[%clk 0:00:19.3]} 43.
Kd3 {[%clk 0:00:04]} 43... Rh2 {[%clk 0:00:19]} 44. Kd4 {[%clk 0:00:02.3]} 44...
Rb2 {[%clk 0:00:18]} 45. Rg8 {[%clk 0:00:01]} 45... Rb3 {[%clk 0:00:17.7]} 46.
Rc8+ {[%clk 0:00:01.6]} 46... Kb7 {[%clk 0:00:17.8]} 47. Rd8 {[%clk 0:00:02.3]}
47... Rxa3 {[%clk 0:00:18]} 48. Rxd6 {[%clk 0:00:02.6]} 48... Rb3 {[%clk
0:00:18.5]} 49. Kc5 {[%clk 0:00:02.8]} 49... a3 {[%clk 0:00:18.2]} 50. Kxb5
{[%clk 0:00:02.9]} 50... a2 {[%clk 0:00:18.3]} 51. Rb6+ {[%clk 0:00:03.5]} 51...
Kc7 {[%clk 0:00:17.2]} 52. Ra6 {[%clk 0:00:04.4]} 52... Rb2 {[%clk 0:00:17.6]}
53. Ra3 {[%clk 0:00:03.8]} 53... Kb7 {[%clk 0:00:16.6]} 54. Ra5 {[%clk
0:00:03.4]} 54... Kc7 {[%clk 0:00:15.2]} 55. Ra7+ {[%clk 0:00:03.7]} 55... Kb8
{[%clk 0:00:15.3]} 56. Ra3 {[%clk 0:00:03.8]} 56... Rh2 {[%clk 0:00:13.4]} 57.
Ra4 {[%clk 0:00:03]} 57... Kb7 {[%clk 0:00:12.7]} 58. Ra3 {[%clk 0:00:02.7]}
58... Rh5+ {[%clk 0:00:10.7]} 59. Kc4 {[%clk 0:00:02.6]} 59... Rh2 {[%clk
0:00:10.9]} 60. Kb3 {[%clk 0:00:02.6]} 60... Kb6 {[%clk 0:00:06.8]} 61. Rxa2
{[%clk 0:00:02.9]} 61... Rh3+ {[%clk 0:00:06.6]} 62. Kb2 {[%clk 0:00:02.9]}
62... Rh2+ {[%clk 0:00:06.2]} 63. Kb1 {[%clk 0:00:02.9]} 63... Rxa2 {[%clk
0:00:05.8]} 64. Kxa2 {[%clk 0:00:03.8]} 64... Kb5 {[%clk 0:00:06.6]} 65. Kb3
{[%clk 0:00:04.4]} 65... Kb6 {[%clk 0:00:06.9]} 66. Kc4 {[%clk 0:00:05.3]} 66...
Kc6 {[%clk 0:00:07.2]} 67. Kc3 {[%clk 0:00:06.2]} 67... Kb5 {[%clk 0:00:07.5]}
68. Kb3 {[%clk 0:00:07.1]} 68... Kb6 {[%clk 0:00:08]} 69. Ka3 {[%clk 0:00:08]}
69... Kb5 {[%clk 0:00:08.4]} 70. Kb3 {[%clk 0:00:08.7]} 1/2-1/2

[Event "Late-Titled-Tuesday-Blitz-June-18-2024"]
[Site "Chess.com"]
[Date "2024.06.18"]
[Round "11"]
[White "ritanovikova"]
[Black "CoachVadim"]
[Result "0-1"]
[WhiteElo "2210"]
[BlackElo "2371"]
[TimeControl "180+1"]
[EndTime "16:08:05 PDT"]
[Termination "CoachVadim won on time"]

1. e4 {[%clk 0:03:00]} 1... c5 {[%clk 0:03:00.5]} 2. Nc3 {[%clk 0:03:00.5]} 2...
Nc6 {[%clk 0:02:59.7]} 3. d3 {[%clk 0:03:01.3]} 3... g6 {[%clk 0:03:00.3]} 4.
Be3 {[%clk 0:03:01.7]} 4... d6 {[%clk 0:03:00.1]} 5. Qd2 {[%clk 0:03:02]} 5...
Bg7 {[%clk 0:03:00.1]} 6. g3 {[%clk 0:03:02.4]} 6... Rb8 {[%clk 0:03:00.2]} 7.
Bg2 {[%clk 0:03:03]} 7... b5 {[%clk 0:03:00.6]} 8. h4 {[%clk 0:03:02.6]} 8... b4
{[%clk 0:03:01]} 9. Nd1 {[%clk 0:03:03.1]} 9... h5 {[%clk 0:02:59.2]} 10. Ne2
{[%clk 0:03:02.5]} 10... Nf6 {[%clk 0:02:53.7]} 11. f3 {[%clk 0:03:01.5]} 11...
a5 {[%clk 0:02:45.2]} 12. d4 {[%clk 0:03:00.3]} 12... cxd4 {[%clk 0:02:41.7]}
13. Nxd4 {[%clk 0:03:01.2]} 13... Ne5 {[%clk 0:02:36.3]} 14. b3 {[%clk
0:03:01.4]} 14... Bd7 {[%clk 0:02:32.1]} 15. c4 {[%clk 0:03:00.2]} 15... bxc3
{[%clk 0:02:20.8]} 16. Nxc3 {[%clk 0:02:56.8]} 16... Nc6 {[%clk 0:02:14.8]} 17.
O-O {[%clk 0:02:48.5]} 17... O-O {[%clk 0:02:12.8]} 18. Rac1 {[%clk 0:02:40.1]}
18... Nxd4 {[%clk 0:02:10.3]} 19. Bxd4 {[%clk 0:02:39.7]} 19... Rb4 {[%clk
0:02:08.5]} 20. Ne2 {[%clk 0:02:33.5]} 20... Nxe4 {[%clk 0:01:51.4]} 21. fxe4
{[%clk 0:02:22.7]} 21... Bxd4+ {[%clk 0:01:51.9]} 22. Nxd4 {[%clk 0:02:22.5]}
22... Qb6 {[%clk 0:01:51.9]} 23. Rcd1 {[%clk 0:02:01.8]} 23... e5 {[%clk
0:01:50.6]} 24. a3 {[%clk 0:01:33.5]} 24... Rxb3 {[%clk 0:01:36]} 25. Kh2 {[%clk
0:01:30.3]} 25... exd4 {[%clk 0:01:35.3]} 26. Qxd4 {[%clk 0:01:20.4]} 26... Qxd4
{[%clk 0:01:36.2]} 27. Rxd4 {[%clk 0:01:20.5]} 27... Rxa3 {[%clk 0:01:34.9]} 28.
Rxd6 {[%clk 0:01:20.3]} 28... Be6 {[%clk 0:01:32.8]} 29. Rf2 {[%clk 0:01:14.2]}
29... Rc8 {[%clk 0:01:28.9]} 30. Bh3 {[%clk 0:00:53.4]} 30... Bxh3 {[%clk
0:01:24.2]} 31. Kxh3 {[%clk 0:00:53.7]} 31... Rcc3 {[%clk 0:01:10.5]} 32. Rg2
{[%clk 0:00:45.1]} 32... Re3 {[%clk 0:01:05.2]} 33. Rd4 {[%clk 0:00:40.8]} 33...
Kg7 {[%clk 0:01:00.4]} 34. Kh2 {[%clk 0:00:38.9]} 34... Kf6 {[%clk 0:00:37.1]}
35. Rc4 {[%clk 0:00:36]} 35... Ke5 {[%clk 0:00:35]} 36. Rc7 {[%clk 0:00:35.3]}
36... Ke6 {[%clk 0:00:32.9]} 37. Rc6+ {[%clk 0:00:33.9]} 37... Kd7 {[%clk
0:00:29]} 38. Rc4 {[%clk 0:00:33.6]} 38... a4 {[%clk 0:00:28.3]} 39. Rd2+ {[%clk
0:00:32]} 39... Ke6 {[%clk 0:00:27.1]} 40. Rd5 {[%clk 0:00:25.2]} 40... Rxe4
{[%clk 0:00:16.7]} 41. Rxe4+ {[%clk 0:00:22.1]} 41... Kxd5 {[%clk 0:00:17]} 42.
Rf4 {[%clk 0:00:22.2]} 42... f5 {[%clk 0:00:14.6]} 43. Rb4 {[%clk 0:00:22]}
43... Ra2+ {[%clk 0:00:12.9]} 44. Kg1 {[%clk 0:00:20.8]} 44... a3 {[%clk
0:00:12.4]} 45. Rb8 {[%clk 0:00:19.7]} 45... Rb2 {[%clk 0:00:12.1]} 46. Rd8+
{[%clk 0:00:16.4]} 46... Ke4 {[%clk 0:00:11.9]} 47. Re8+ {[%clk 0:00:16.1]}
47... Kf3 {[%clk 0:00:11.6]} 48. Ra8 {[%clk 0:00:15.8]} 48... a2 {[%clk
0:00:10.6]} 49. Ra3+ {[%clk 0:00:15.5]} 49... Kg4 {[%clk 0:00:10.8]} 50. Ra4+
{[%clk 0:00:14.7]} 50... Kxg3 {[%clk 0:00:11.3]} 51. Ra3+ {[%clk 0:00:14.9]}
51... Kxh4 {[%clk 0:00:11.5]} 52. Ra4+ {[%clk 0:00:14.9]} 52... Kg5 {[%clk
0:00:11.2]} 53. Ra5 {[%clk 0:00:13.7]} 53... Rb1+ {[%clk 0:00:11.4]} 54. Kh2
{[%clk 0:00:14]} 54... a1=Q {[%clk 0:00:12.3]} 55. Rd5 {[%clk 0:00:11.9]} 55...
Qb2+ {[%clk 0:00:10.5]} 56. Kg3 {[%clk 0:00:11.3]} 56... Rg1+ {[%clk 0:00:08.4]}
57. Kf3 {[%clk 0:00:10.7]} 57... Qg2+ {[%clk 0:00:06.1]} 58. Ke3 {[%clk
0:00:10.6]} 58... Qxd5 {[%clk 0:00:05.9]} 59. Kf2 {[%clk 0:00:10.1]} 59... Rd1
{[%clk 0:00:05.7]} 60. Ke2 {[%clk 0:00:10]} 60... Qd3+ {[%clk 0:00:05.4]} 61.
Kf2 {[%clk 0:00:10.1]} 61... Rd2+ {[%clk 0:00:05.7]} 0-1

[Event "Late-Titled-Tuesday-Blitz-June-18-2024"]
[Site "Chess.com"]
[Date "2024.06.18"]
[Round "11"]
[White "Abund"]
[Black "BardArtem"]
[Result "0-1"]
[WhiteElo "2688"]
[BlackElo "2866"]
[TimeControl "180+1"]
[EndTime "16:08:08 PDT"]
[Termination "BardArtem won by resignation"]

1. e4 {[%clk 0:03:00.9]} 1... e5 {[%clk 0:02:58.7]} 2. Nf3 {[%clk 0:03:01.1]}
2... Nc6 {[%clk 0:02:59]} 3. Bb5 {[%clk 0:03:00.9]} 3... Nge7 {[%clk 0:02:59.3]}
4. O-O {[%clk 0:03:00.2]} 4... Ng6 {[%clk 0:02:59.5]} 5. d4 {[%clk 0:03:00.1]}
5... exd4 {[%clk 0:02:59.2]} 6. Nxd4 {[%clk 0:03:01]} 6... Bc5 {[%clk
0:02:59.7]} 7. Nf5 {[%clk 0:03:00.3]} 7... O-O {[%clk 0:02:59.6]} 8. Be3 {[%clk
0:03:01]} 8... Bxe3 {[%clk 0:02:57.2]} 9. Nxe3 {[%clk 0:03:01.9]} 9... d6 {[%clk
0:02:54.7]} 10. Nc3 {[%clk 0:03:01.9]} 10... Kh8 {[%clk 0:02:52.5]} 11. a3
{[%clk 0:02:43.1]} 11... f5 {[%clk 0:02:43.2]} 12. exf5 {[%clk 0:02:39.2]} 12...
Bxf5 {[%clk 0:02:44.1]} 13. Nxf5 {[%clk 0:02:39.8]} 13... Rxf5 {[%clk 0:02:45]}
14. Bd3 {[%clk 0:02:40.1]} 14... Rf8 {[%clk 0:02:26.1]} 15. Bxg6 {[%clk
0:02:17.5]} 15... hxg6 {[%clk 0:02:27]} 16. Qg4 {[%clk 0:02:16.7]} 16... Qf6
{[%clk 0:02:24.6]} 17. Nd5 {[%clk 0:02:13.6]} 17... Qf7 {[%clk 0:02:14.3]} 18.
Rad1 {[%clk 0:02:09.8]} 18... Rae8 {[%clk 0:02:07]} 19. Qh4+ {[%clk 0:01:48.9]}
19... Kg8 {[%clk 0:02:05.4]} 20. Rd3 {[%clk 0:01:48.9]} 20... Re5 {[%clk
0:01:53.2]} 21. c4 {[%clk 0:01:44.1]} 21... Rh5 {[%clk 0:01:32.6]} 22. Qg3
{[%clk 0:01:38.9]} 22... Ne5 {[%clk 0:01:32.8]} 23. Rd4 {[%clk 0:01:38.4]} 23...
c6 {[%clk 0:01:12.5]} 24. Ne3 {[%clk 0:01:34.3]} 24... Qf6 {[%clk 0:01:08.8]}
25. Re4 {[%clk 0:00:53.5]} 25... Rg5 {[%clk 0:01:00.9]} 26. Qh3 {[%clk
0:00:51.7]} 26... Nf3+ {[%clk 0:00:26.3]} 27. Kh1 {[%clk 0:00:51.6]} 27... Nd2
{[%clk 0:00:26.6]} 28. Re6 {[%clk 0:00:39.5]} 28... Qf7 {[%clk 0:00:23.5]} 29.
Rd1 {[%clk 0:00:14.6]} 29... Qxf2 {[%clk 0:00:23.2]} 30. Rxd6 {[%clk 0:00:14.6]}
30... Nxc4 {[%clk 0:00:03]} 31. Qe6+ {[%clk 0:00:09]} 31... Kh8 {[%clk
0:00:03.7]} 32. Qxc4 {[%clk 0:00:07]} 32... Qxe3 {[%clk 0:00:04.1]} 33. Rd8
{[%clk 0:00:05.7]} 33... Rf5 {[%clk 0:00:03.7]} 34. Qh4+ {[%clk 0:00:05.2]}
34... Qh6 {[%clk 0:00:02.1]} 35. Qe7 {[%clk 0:00:02.5]} 35... Rxd8 {[%clk
0:00:01.8]} 36. Qxd8+ {[%clk 0:00:02.9]} 36... Kh7 {[%clk 0:00:02.3]} 37. Qd3
{[%clk 0:00:02.8]} 37... Qf4 {[%clk 0:00:02.3]} 38. h3 {[%clk 0:00:03.3]} 38...
c5 {[%clk 0:00:02]} 39. Qd7 {[%clk 0:00:03.5]} 39... b6 {[%clk 0:00:02.3]} 40.
Qxa7 {[%clk 0:00:03.7]} 40... Qe4 {[%clk 0:00:01.5]} 41. Qd7 {[%clk 0:00:03.5]}
41... Rf2 {[%clk 0:00:01.5]} 42. Qg4 {[%clk 0:00:02.2]} 42... Qxg4 {[%clk
0:00:01.9]} 43. hxg4 {[%clk 0:00:02.9]} 43... Rxb2 {[%clk 0:00:02.8]} 44. Rd6
{[%clk 0:00:03.1]} 44... c4 {[%clk 0:00:02.7]} 45. Rc6 {[%clk 0:00:03.3]} 45...
b5 {[%clk 0:00:03.3]} 46. Rc5 {[%clk 0:00:03]} 46... Kh6 {[%clk 0:00:02.6]} 47.
Kh2 {[%clk 0:00:02.9]} 47... Kh7 {[%clk 0:00:03.2]} 48. Rc8 {[%clk 0:00:02.7]}
48... Rb3 {[%clk 0:00:03.2]} 49. Rc5 {[%clk 0:00:03]} 49... c3 {[%clk
0:00:02.2]} 50. g3 {[%clk 0:00:01.7]} 50... Rxa3 {[%clk 0:00:01.9]} 51. Rxb5
{[%clk 0:00:02.1]} 51... c2 {[%clk 0:00:02.4]} 52. Rc5 {[%clk 0:00:02.6]} 52...
Ra2 {[%clk 0:00:02.8]} 53. Kh3 {[%clk 0:00:03.2]} 53... Kg8 {[%clk 0:00:02.8]}
54. Rc7 {[%clk 0:00:03.4]} 54... Kf8 {[%clk 0:00:03.2]} 55. g5 {[%clk 0:00:04]}
55... Ke8 {[%clk 0:00:03.2]} 56. Rc5 {[%clk 0:00:04.2]} 56... Kd7 {[%clk
0:00:03.4]} 57. Rc3 {[%clk 0:00:04.3]} 57... Kd6 {[%clk 0:00:03.9]} 58. Rc8
{[%clk 0:00:04.4]} 58... Ke5 {[%clk 0:00:04.1]} 59. Rc4 {[%clk 0:00:04.2]} 59...
Kd5 {[%clk 0:00:04.5]} 60. Rc8 {[%clk 0:00:04.5]} 60... Kd4 {[%clk 0:00:05.1]}
61. Kg4 {[%clk 0:00:04.6]} 61... Ke3 {[%clk 0:00:05]} 62. Re8+ {[%clk
0:00:02.2]} 62... Kd2 {[%clk 0:00:05.5]} 63. Rd8+ {[%clk 0:00:02.5]} 63... Kc1
{[%clk 0:00:06.1]} 64. Kf4 {[%clk 0:00:02.5]} 64... Kb1 {[%clk 0:00:06.3]} 65.
Rc8 {[%clk 0:00:02]} 65... c1=Q+ {[%clk 0:00:06.5]} 66. Rxc1+ {[%clk 0:00:02.3]}
66... Kxc1 {[%clk 0:00:07.4]} 67. Ke5 {[%clk 0:00:03.2]} 67... Ra6 {[%clk
0:00:07.5]} 68. g4 {[%clk 0:00:03.5]} 68... Kd2 {[%clk 0:00:07.7]} 69. Kf4
{[%clk 0:00:04.4]} 69... Ke2 {[%clk 0:00:08.3]} 70. Kg3 {[%clk 0:00:05.3]} 70...
Ke3 {[%clk 0:00:08.4]} 71. Kh4 {[%clk 0:00:06.2]} 71... Kf4 {[%clk 0:00:08.7]}
72. Kh3 {[%clk 0:00:06.7]} 72... Ra1 {[%clk 0:00:09.1]} 73. Kg2 {[%clk
0:00:06.7]} 73... Kxg4 {[%clk 0:00:09.3]} 0-1

[Event "Late-Titled-Tuesday-Blitz-June-18-2024"]
[Site "Chess.com"]
[Date "2024.06.18"]
[Round "11"]
[White "Evan_Attaker"]
[Black "jcibarra"]
[Result "0-1"]
[WhiteElo "2759"]
[BlackElo "2991"]
[TimeControl "180+1"]
[EndTime "16:08:15 PDT"]
[Termination "jcibarra won by checkmate"]

1. a3 {[%clk 0:03:00.9]} 1... g6 {[%clk 0:02:59.4]} 2. h4 {[%clk 0:02:59.3]}
2... Nf6 {[%clk 0:02:59]} 3. Nf3 {[%clk 0:02:56.6]} 3... Bg7 {[%clk 0:02:59.6]}
4. c4 {[%clk 0:02:56.5]} 4... O-O {[%clk 0:03:00.1]} 5. b3 {[%clk 0:02:55.5]}
5... d6 {[%clk 0:02:58.4]} 6. Bb2 {[%clk 0:02:55.3]} 6... e5 {[%clk 0:02:59]} 7.
d3 {[%clk 0:02:55]} 7... Nh5 {[%clk 0:02:55.1]} 8. e3 {[%clk 0:02:49.8]} 8...
Nc6 {[%clk 0:02:52]} 9. Nc3 {[%clk 0:02:44.1]} 9... h6 {[%clk 0:02:42.7]} 10.
Be2 {[%clk 0:02:41]} 10... f5 {[%clk 0:02:42.5]} 11. Qc2 {[%clk 0:02:33.4]}
11... f4 {[%clk 0:02:38.1]} 12. e4 {[%clk 0:02:19.8]} 12... Bg4 {[%clk
0:02:38.5]} 13. Nd5 {[%clk 0:02:18.2]} 13... Nf6 {[%clk 0:02:34.9]} 14. b4
{[%clk 0:02:14.3]} 14... Nd7 {[%clk 0:02:29.2]} 15. b5 {[%clk 0:02:08.9]} 15...
Ne7 {[%clk 0:02:21.5]} 16. Ng5 {[%clk 0:02:02.3]} 16... Bxe2 {[%clk 0:02:02]}
17. Ne6 {[%clk 0:01:59.9]} 17... Bxd3 {[%clk 0:02:02.3]} 18. Nxd8 {[%clk
0:01:45.3]} 18... Bxc2 {[%clk 0:02:01.8]} 19. Nxe7+ {[%clk 0:01:45.4]} 19... Kh7
{[%clk 0:02:00]} 20. Nxb7 {[%clk 0:01:39.5]} 20... Bxe4 {[%clk 0:01:56.1]} 21.
Na5 {[%clk 0:01:36.2]} 21... Bxg2 {[%clk 0:01:55.4]} 22. Rg1 {[%clk 0:01:35.6]}
22... Be4 {[%clk 0:01:56]} 23. Nd5 {[%clk 0:01:25.5]} 23... Nc5 {[%clk
0:01:44.6]} 24. Bc3 {[%clk 0:01:03.7]} 24... Bxd5 {[%clk 0:01:33]} 25. cxd5
{[%clk 0:01:00.6]} 25... e4 {[%clk 0:01:32]} 26. Bxg7 {[%clk 0:00:59.1]} 26...
Kxg7 {[%clk 0:01:32.9]} 27. Ke2 {[%clk 0:00:52.4]} 27... Rf5 {[%clk 0:01:24]}
28. Rad1 {[%clk 0:00:33.8]} 28... a6 {[%clk 0:01:23.3]} 29. b6 {[%clk 0:00:31]}
29... cxb6 {[%clk 0:01:20]} 30. Nc4 {[%clk 0:00:31.6]} 30... Rf6 {[%clk
0:00:48]} 31. Nxb6 {[%clk 0:00:27]} 31... Rb8 {[%clk 0:00:48.6]} 32. Rb1 {[%clk
0:00:26.6]} 32... Rf7 {[%clk 0:00:42.2]} 33. Nc4 {[%clk 0:00:23.9]} 33... Rfb7
{[%clk 0:00:42.6]} 34. Rxb7+ {[%clk 0:00:22.1]} 34... Rxb7 {[%clk 0:00:43.5]}
35. Rd1 {[%clk 0:00:19.1]} 35... Rb3 {[%clk 0:00:27.2]} 36. Nxd6 {[%clk
0:00:17.1]} 36... f3+ {[%clk 0:00:27.8]} 37. Kf1 {[%clk 0:00:16.5]} 37... Rxa3
{[%clk 0:00:26]} 38. Nc4 {[%clk 0:00:15.6]} 38... Rd3 {[%clk 0:00:26.3]} 39.
Rxd3 {[%clk 0:00:11.5]} 39... exd3 {[%clk 0:00:24.2]} 40. Ke1 {[%clk 0:00:11.9]}
40... Ne4 {[%clk 0:00:22.3]} 41. d6 {[%clk 0:00:05.3]} 41... Kf6 {[%clk
0:00:21.3]} 42. d7 {[%clk 0:00:05.1]} 42... Ke7 {[%clk 0:00:21.4]} 43. Ne5
{[%clk 0:00:05.6]} 43... d2+ {[%clk 0:00:21.1]} 44. Kd1 {[%clk 0:00:05.8]} 44...
Nxf2+ {[%clk 0:00:18.7]} 45. Kxd2 {[%clk 0:00:06.3]} 45... Ne4+ {[%clk
0:00:19.3]} 46. Ke3 {[%clk 0:00:06.2]} 46... f2 {[%clk 0:00:19.9]} 47. Ke2
{[%clk 0:00:06.1]} 47... g5 {[%clk 0:00:19.6]} 48. hxg5 {[%clk 0:00:06]} 48...
hxg5 {[%clk 0:00:20.5]} 49. Kf1 {[%clk 0:00:05.3]} 49... Kd8 {[%clk 0:00:15.8]}
50. Kg2 {[%clk 0:00:04.3]} 50... Kc7 {[%clk 0:00:16.4]} 51. Kf1 {[%clk
0:00:03.8]} 51... Nf6 {[%clk 0:00:15.3]} 52. Nf7 {[%clk 0:00:02]} 52... Kxd7
{[%clk 0:00:12.3]} 53. Nxg5 {[%clk 0:00:02.7]} 53... Ng4 {[%clk 0:00:12.3]} 54.
Ne4 {[%clk 0:00:03]} 54... a5 {[%clk 0:00:11.9]} 55. Nc3 {[%clk 0:00:02.9]}
55... Kc6 {[%clk 0:00:12.1]} 56. Kg2 {[%clk 0:00:03.4]} 56... Kc5 {[%clk
0:00:11.9]} 57. Ne4+ {[%clk 0:00:03.8]} 57... Kd4 {[%clk 0:00:11.8]} 58. Nd6
{[%clk 0:00:04.1]} 58... a4 {[%clk 0:00:10.8]} 59. Nb5+ {[%clk 0:00:04.7]} 59...
Kc5 {[%clk 0:00:10.5]} 60. Na3 {[%clk 0:00:05.2]} 60... Kb4 {[%clk 0:00:10.8]}
61. Nb1 {[%clk 0:00:05.9]} 61... Kb3 {[%clk 0:00:09.3]} 62. Nd2+ {[%clk
0:00:06]} 62... Kb4 {[%clk 0:00:08.9]} 63. Kf3 {[%clk 0:00:06.2]} 63... a3
{[%clk 0:00:08]} 64. Kxg4 {[%clk 0:00:06.8]} 64... a2 {[%clk 0:00:08.3]} 65. Kf3
{[%clk 0:00:07.5]} 65... a1=Q {[%clk 0:00:08.3]} 66. Kxf2 {[%clk 0:00:08.2]}
66... Kc3 {[%clk 0:00:07.9]} 67. Nf3 {[%clk 0:00:06.9]} 67... Kd3 {[%clk
0:00:07.7]} 68. Kg3 {[%clk 0:00:06]} 68... Ke3 {[%clk 0:00:07.6]} 69. Nh2 {[%clk
0:00:04.9]} 69... Qe5+ {[%clk 0:00:07.4]} 70. Kg2 {[%clk 0:00:05]} 70... Qe4+
{[%clk 0:00:06.5]} 71. Kg3 {[%clk 0:00:05.3]} 71... Qf4+ {[%clk 0:00:06.6]} 72.
Kg2 {[%clk 0:00:05.9]} 72... Qg5+ {[%clk 0:00:06.5]} 73. Kh3 {[%clk 0:00:06.2]}
73... Kf4 {[%clk 0:00:05.8]} 74. Nf3 {[%clk 0:00:05.2]} 74... Qg3# {[%clk
0:00:05.4]} 0-1